{"text_format":"1","workbook":"xlsx","n_sheets":3,"sheets":["Relación de gastos","Relación de ingresos ","gastos e ingresos"],"not_rendered":{"charts":0,"images":2,"macros":1,"external_links":0,"defined_names":8,"comments":3,"pivot_tables":0},"unopened":[],"bounds":{"document_bytes":16777216,"sheet_cells":100000,"rows_first":2000,"rows_last":500,"rows_between":2000,"halvings":0,"cell_chars":16384,"cell_head_chars":4096},"cells_cut":0,"cells_raw":0,"read":"whole","date_system":"1900"}

{"sheet":"Relación de gastos","index":0,"n_rows":161,"n_cols":10,"rows_kept":161,"cut":false,"hidden":false,"merged":[[159,0,159,10],[160,0,160,10],[131,1,131,2],[150,0,150,10],[151,0,151,10],[152,0,152,10],[153,0,153,10],[154,0,154,10],[155,0,155,10],[156,0,156,10],[157,0,157,10],[158,0,158,10],[141,0,141,10],[142,0,142,10],[143,0,143,10],[144,0,144,10],[145,0,145,10],[146,0,146,10],[147,0,147,10],[148,0,148,10],[149,0,149,10],[12,9,12,10],[17,0,17,10],[18,9,18,10],[0,0,0,10],[4,0,4,1],[16,0,16,6],[2,2,2,3],[3,2,3,3],[4,2,4,3],[11,9,11,10],[2,0,2,1],[2,4,2,6],[3,4,3,6],[4,4,4,6],[7,2,8,2],[2,7,2,8],[3,7,3,8],[4,7,4,8],[9,0,9,8],[3,0,3,1],[7,1,8,1],[7,0,8,0],[6,0,6,4],[49,9,49,10],[53,9,53,10],[52,9,52,10],[35,0,35,6],[41,0,41,6],[30,0,30,10],[7,9,7,10],[8,9,8,10],[10,0,10,10],[15,9,15,10],[32,9,32,10],[31,9,31,10],[7,3,7,4],[53,0,53,6],[35,9,35,10],[34,9,34,10],[16,9,16,10],[43,9,43,10],[41,9,41,10],[40,9,40,10],[19,9,19,10],[21,9,21,10],[44,9,44,10],[47,0,47,6],[60,0,60,2],[60,3,60,6],[60,9,60,10],[61,0,61,8],[62,0,62,10],[67,0,67,6],[67,9,67,10],[69,9,69,10],[70,9,70,10],[63,9,63,10],[68,0,68,10],[66,9,66,10],[71,9,71,10],[72,9,72,10],[73,0,73,6],[73,9,73,10],[75,9,75,10],[76,9,76,10],[77,9,77,10],[78,9,78,10],[74,0,74,10],[79,0,79,6],[79,9,79,10],[80,0,80,10],[81,9,81,10],[82,9,82,10],[83,9,83,10],[84,9,84,10],[85,0,85,6],[85,9,85,10],[115,9,115,10],[116,0,116,10],[117,9,117,10],[118,9,118,10],[119,9,119,10],[101,9,101,10],[86,0,86,10],[87,9,87,10],[88,9,88,10],[89,9,89,10],[90,9,90,10],[91,0,91,6],[91,9,91,10],[92,0,92,10],[93,9,93,10],[100,9,100,10],[22,9,22,10],[23,0,23,6],[23,9,23,10],[24,0,24,10],[25,9,25,10],[48,0,48,10],[36,0,36,10],[42,0,42,10],[26,9,26,10],[27,9,27,10],[28,9,28,10],[29,0,29,6],[29,9,29,10],[33,9,33,10],[39,9,39,10],[38,9,38,10],[47,9,47,10],[46,9,46,10],[45,9,45,10],[126,0,127,9],[135,0,135,10],[137,0,137,10],[138,0,138,10],[139,0,139,10],[140,0,140,10],[51,9,51,10],[50,9,50,10],[123,0,123,5],[123,9,123,10],[106,9,106,10],[107,9,107,10],[108,9,108,10],[109,0,109,6],[109,9,109,10],[94,9,94,10],[95,9,95,10],[96,9,96,10],[97,0,97,6],[97,9,97,10],[98,0,98,10],[99,9,99,10],[102,9,102,10],[103,0,103,6],[125,0,125,10],[54,0,54,10],[55,9,55,10],[56,9,56,10],[57,9,57,10],[58,9,58,10],[59,0,59,6],[59,9,59,10],[37,9,37,10],[103,9,103,10],[104,0,104,10],[105,9,105,10],[110,0,110,10],[111,9,111,10],[120,9,120,10],[121,0,121,6],[121,9,121,10],[122,0,122,2],[122,3,122,6],[122,9,122,10],[112,9,112,10],[113,9,113,10],[114,9,114,10],[115,0,115,6]]}
["Relación clasificada de todos los gastos realizados para la ejecución de la actividad subvencionada"]
[]
["Persona física/jurídica beneficiaria:         ",null,null,null,"Importe total del proyecto:",null,null,null,null,"euros"]
["Código de subvención:",null,null,null,"Importe de la subvención otorgada:",null,null,null,null,"euros"]
["Nombre del proyecto subvencionado:",null,null,null,"Período de ejecución del proyecto subvencionado:",null,null,null,null,"a"]
[]
["Gastos del proyecto/actividad/servicio subvencionado (*)"]
["Núm. de orden (0)","Número de documento: justificantes gastos personal (1), factura o recibo/tiquet(2)","Concepto de la factura / \ndocumento probatorio equivalente","Emisor/a de la factura",null,"Fecha de emisión","Importe total de la factura","Importe imputable (dedicado) al proyecto (3)","Importe imputable a la subvención municipal (4)","Observaciones"]
[null,null,null,"NIF","Nombre","dd/mm/aaaa","euros","euros","euros"]
["GASTOS DIRECTOS (Aquellos que se identifican directamente con el proyecto)"]
["D1.  Retribuciones y seguridad social (régimen general o régimen de autónomos) del personal propio vinculado al proyecto"]
[]
[]
[]
[]
[]
["Subtotal D1",null,null,null,null,null,null,{"$f":"SUM(H12:H16)","v":0},{"$f":"SUM(I12:I16)","v":0}]
["D2.  Trabajos realizados por profesionales y empresas externas directamente vinculadas al acompañamiento de procesos de la entidad y con sus asociadas"]
[]
[]
[]
[]
[]
["Subtotal D2",null,null,null,null,null,null,{"$f":"SUM(H19:H23)","v":0},{"$f":"SUM(I19:I23)","v":0}]
["D3.  Alquiler de bienes inmuebles directamente vinculados al proyecto"]
[]
[]
[]
[]
["Subtotal D3",null,null,null,null,null,null,{"$f":"SUM(H26:H29)","v":0},{"$f":"SUM(I26:I29)","v":0}]
["D4.  Adquisición de materiales y bienes consumibles íntegramente imputables al proyecto"]
[]
[]
[]
[]
["Subtotal D4",null,null,null,null,null,null,{"$f":"SUM(H32:H35)","v":0},{"$f":"SUM(I32:I35)","v":0}]
["D5.  Publicidad y propaganda de las actividades directamente vinculadas al proyecto"]
[]
[]
[]
[]
["Subtotal D5",null,null,null,null,null,null,{"$f":"SUM(H38:H41)","v":0},{"$f":"SUM(I38:I41)","v":0}]
["D6.  Viajes y desplazamientos imputables a las actividades del proyecto"]
[]
[]
[]
[]
["Subtotal D6",null,null,null,null,null,null,{"$f":"SUM(H44:H47)","v":0},{"$f":"SUM(I44:I47)","v":0}]
["D7.  Gastos del informe de auditoría"]
[]
[]
[]
[]
["Subtotal D7",null,null,null,null,null,null,{"$f":"SUM(H50:H53)","v":0},{"$f":"SUM(I50:I53)","v":0}]
["D8.  Otros gastos que de manera justificada puedan imputarse directamente al proyecto"]
[]
[]
[]
[]
["Subtotal D8",null,null,null,null,null,null,{"$f":"SUM(H56:H59)","v":0},{"$f":"SUM(I56:I59)","v":0}]
["TOTAL GASTOS DIRECTOS ",null,null,"TOTAL GASTOS DIRECTOS",null,null,null,{"$f":"+H17+H36+H42+H48+H54+H30+H24+H60","v":0},{"$f":"+I17+I36+I42+I48+I54+I30+I24+I60","v":0}]
["GASTOS INDIRECTOS (no se pueden asignar directamente al proyecto sin utilizar algún % de asignación)"]
["I.1 Personal de soporte al proyecto (Nóminas y seguridad social)"]
[]
[]
[]
[]
["Subtotal I1",null,null,null,null,null,null,{"$f":"SUM(H64:H67)","v":0},{"$f":"SUM(I64:I67)","v":0}]
["I.2  Seguros"]
[]
[]
[]
[]
["Subtotal I2",null,null,null,null,null,null,{"$f":"SUM(H70:H73)","v":0},{"$f":"SUM(I70:I73)","v":0}]
["I.3  Amortización"]
[]
[]
[]
[]
["Subtotal I3",null,null,null,null,null,null,{"$f":"SUM(H76:H79)","v":0},{"$f":"SUM(I76:I79)","v":0}]
["I.4  Alquiler de bienes inmuebles"]
[]
[]
[]
[]
["Subtotal I4",null,null,null,null,null,null,{"$f":"SUM(H82:H85)","v":0},{"$f":"SUM(I82:I85)","v":0}]
["I.5  Adquisición de materiales y bienes consumibles parcialmente imputables al proyecto"]
[]
[]
[]
[]
["Subtotal I5",null,null,null,null,null,null,{"$f":"SUM(H88:H91)","v":0},{"$f":"SUM(I88:I91)","v":0}]
["I.6  Mantenimiento de edificios y/o instalaciones"]
[]
[]
[]
[]
["Subtotal I6",null,null,null,null,null,null,{"$f":"SUM(H94:H97)","v":0},{"$f":"SUM(I94:I97)","v":0}]
["I.7  Comunicaciones (teléfono, correos, conexión a internet)"]
[]
[]
[]
[]
["Subtotal I7",null,null,null,null,null,null,{"$f":"SUM(H100:H103)","v":0},{"$f":"SUM(I100:I103)","v":0}]
["I.8  Gastos financieros"]
[]
[]
[]
[]
["Subtotal I8",null,null,null,null,null,null,{"$f":"SUM(H106:H109)","v":0},{"$f":"SUM(I106:I109)","v":0}]
["I.9  Suministros "]
[]
[]
[]
[]
["Subtotal I9",null,null,null,null,null,null,{"$f":"SUM(H112:H115)","v":0},{"$f":"SUM(I112:I115)","v":0}]
["I.10  Trabajo realizado por otras empresas, parcialmente imputables al proyecto (limpieza, seguridad...)"]
[]
[]
[]
[]
["Subtotal I10",null,null,null,null,null,null,{"$f":"SUM(H118:H121)","v":0},{"$f":"SUM(I118:I121)","v":0}]
["TOTAL GASTOS INDIRECTOS ",null,null,"TOTAL GASTOS INDIRECTOS",null,null,null,{"$f":"+H68+H74+H80+H86+H92+H98+H104+H110+H116+H122","v":0},{"$f":"+I68+I74+I80+I86+I92+I98+I104+I110+I116+I122","v":0}]
["TOTAL GASTOS",null,null,null,null,null,"TOTAL",{"$f":"+H123+H61","v":0},{"$f":"+I123+I61","v":0}]
[]
["El Sr./Sra. (indicar el nombre y apellidos de la persona representante que firma la justificación) con DNI/NIE (indicar el núm. DNI) en calidad de persona física beneficiaria o representante legal de la persona jurídica beneficiaria (indicar nombre y apellidos) con NIF (indicar núm DNI)."]
["CERTIFICA que los gastos imputados al proyecto/actividad/servicio subvencionado han sido efectivamente efectuados; que custodiará la documentación soporte que lo acredita; que esta documentación se encuentra a disposición del Ayuntamiento de Barcelona o de los otros entes municipales en los archivos de esta Entidad, durante un período mínimo de 4 años a contar desde la fecha de presentación de la presente justificación."]
[]
[]
[]
[]
[null,"Población y fecha: ",null,null,"Firma y sello (en caso de registro físico)"]
[]
[]
["Notas:"]
["(*) Deben relacionarse todos los gastos del proyecto/actividad/servicio subvencionado. En el caso de que el número de filas de cada concepto sea insuficiente podéis insertar líneas dentro del mismo concepto seleccionando una celda verde y haciendo clic encima del botón de insertar línea."]
["(0) El número de orden debe ser correlativo comenzando por D.1.1, D.1.2, D.1.3, D.2.4, etc."]
["(1) Respecto a los gastos de recursos humanos, puede ser subvencionable el coste total salarial mensual, que corresponde a la suma de la retribución bruta que aparece en la nómina del trabajador/a más la cuota de la empresa a la Seg. Social. Los gastos de personal se justifican con la nómina del trabajador/a acompañada de los correspondientes TC1 y TC2 de la TGSS y el modelo 111 del IRPF."]
["(2) En el caso de que el documento justificativo del resto de gastos, no sea una factura, sino otro documento probatorio equivalente, como un recibo o justificante (como por dietas o transporte público), hay que indicarlo en la columna \"observaciones\"."]
["(3) En el caso de que un justificante incluya conceptos que no tienen que ver con el proyecto/actividad/servicio por el cual se ha otorgado la subvención, aquí sólo se debe indicar la parte que realmente se ha dedicado al proyecto."]
["(4) En esta columna se debe indicar el importe total o parcial de la factura que se imputa a la subvención recibida del Ayuntamiento de Barcelona. El total imputado, en esta columna, debe ser igual al importe de la subvención recibida."]
["Modalidad Ba: Intercooperación de 2º y mayor nivel: Proyectos promovidos por entidades de la Economía Social y Solidaria o de las finanzas éticas de segundo nivel y superior, que contribuyan al despliegue de la Estrategia BCN 2030 de ESS de Barcelona, y tengan por destinatarias a sus entidades socias"]
["1.  La cuantía de la subvención otorgada no superará el 80% del gasto total del proyecto a subvencionar. "]
["2.  El importe máximo de subvención para la modalidad \"a\" del ámbito temático B de Interccoperación es 35.000,00 €."]
["3.  En el caso de que la solicitud presentada sobrepase el importe máximo, se considerará como un importe solicitado el máximo de lo establecido en la convocatoria."]
["4.  Se limita con un máximo del 25% el importe de la subvención para gastos de personal propio asignado al proyecto."]
["5.  Los gastos indirectos imputados al proyecto detallados, no podrán superar el 10% del importe de la subvención."]
["6.  El carácter subvencionable del gasto de amortización estará sujeto a las condiciones siguientes:"]
["* Que las subvenciones no hayan contribuido a la compra de los bienes."]
["* Que la amortización se calcule de conformidad con las normas de contabilidad generalmente aceptadas."]
["* Que el coste se refiera al período subvencionable."]
["7.  Cuando deban hacerse gastos de más de 12.000 €, sin IVA, en el caso de prestaciones de servicios o entrega de bienes y para aquellos gastos de más de 30.000 €,  sin IVA, en el caso de ejecución de obras, debarán incorporarse tres presupuestos solicitados y argumentar el motivo de la adjudicación en el caso de no ser la propuesta más favorable económicamente."]
["8.  En ningún caso se considerarán gastos subvencionables:"]
["* Los impuestos indirectos cuando sean susceptibles de recuperación o compensación, ni los impuestos sobre la renta."]
["* Los gastos de inversión, incluidas las adquisiciones de bienes muebles."]
["* Los gastos realizados con fecha anterior al inicio del proyecto y fecha posterior a la finalización del proyecto."]
["* Otros gastos que se indiquen en la convocatoria."]
["9. Para las subvenciones otorgadas por importe igual o superior a 20.000 € es necesario un informe de auditoría para la justificación. "]
["10. El importe de este informe se considera gasto subvencionable, con un límite máximo de 1.500 €."]
["11. Los salarios percibidos por las personas contratadas en el marco del proyecto subvencionado no sean inferiores a 1.088,56€ brutos mensuales (13.062,72€ brutos en cómputo anual) en el caso de jornadas completas, o la parte proporcional en el caso de jornadas parciales (punto 7 de las bases 2019: Requisitos de los proyectos)."]
["12. Los materiales producidos de difusión, estudios, informes o materiales didácticos utilizados, etc. en el caso de tratarse de gasto elegible de la subvención, deberán tener licencia Creative Commons -Compartir Igual- (share alike) y no podrá tener la condición –Sin Obras Derivadas- (no derivate Works)."]

{"sheet":"Relación de ingresos ","index":1,"n_rows":77,"n_cols":10,"rows_kept":77,"cut":false,"hidden":false,"merged":[[72,1,72,2],[64,6,64,9],[59,6,59,9],[66,6,66,9],[60,6,60,9],[61,6,61,9],[62,6,62,9],[63,6,63,9],[66,0,66,3],[65,0,65,3],[65,6,65,9],[68,0,68,9],[69,0,70,9],[51,0,51,9],[57,0,57,9],[56,6,56,9],[58,6,58,9],[56,0,56,3],[53,6,53,9],[52,6,52,9],[0,0,0,9],[9,0,9,9],[15,0,15,9],[21,0,21,9],[7,6,8,9],[10,6,10,9],[11,6,11,9],[7,0,8,0],[13,6,13,9],[3,2,3,3],[2,2,2,3],[6,0,6,3],[4,2,4,3],[7,2,7,3],[7,1,8,1],[14,0,14,3],[27,0,27,9],[33,0,33,9],[39,0,39,9],[38,0,38,3],[32,0,32,3],[37,6,37,9],[30,6,30,9],[32,6,32,9],[31,6,31,9],[38,6,38,9],[44,0,44,3],[26,0,26,3],[50,6,50,9],[49,6,49,9],[20,0,20,3],[45,0,45,9],[47,6,47,9],[46,6,46,9],[26,6,26,9],[25,6,25,9],[23,6,23,9],[22,6,22,9],[36,6,36,9],[35,6,35,9],[41,6,41,9],[40,6,40,9],[50,0,50,3],[12,6,12,9],[24,6,24,9],[48,6,48,9],[19,6,19,9],[18,6,18,9],[17,6,17,9],[16,6,16,9],[34,6,34,9],[44,6,44,9],[43,6,43,9],[42,6,42,9],[14,6,14,9],[20,6,20,9],[29,6,29,9],[28,6,28,9]]}
["Detalle de todos los ingresos obtenidos y aportaciones del propio beneficiario para la ejecución de la actividad subvencionada"]
[]
[null,"Nombre de la persona física/jurídica beneficiaria:        ",{"$f":"IF('Relación de gastos'!C3:D3<>\"\",'Relación de gastos'!C3:D3,\"\")","v":""},null,"Importe total del proyecto:",null,null,{"$f":"IF(+'Relación de gastos'!H3=\"\",\"\",+'Relación de gastos'!H3)","v":""},"euros"]
[null,"Código de subvención:",{"$f":"IF('Relación de gastos'!C4:D4<>\"\",'Relación de gastos'!C4:D4,\"\")","v":""},null,"Importe de la subvención otorgada:",null,null,{"$f":"IF(+'Relación de gastos'!H4=\"\",\"\",+'Relación de gastos'!H4)","v":""},"euros"]
[null,"Nombre del proyecto subvencionado:",{"$f":"IF('Relación de gastos'!C5:D5<>\"\",'Relación de gastos'!C5:D5,\"\")","v":""},null,"Período de ejecución del proyecto subvencionado:",null,null,{"$f":"IF(+'Relación de gastos'!H5=\"\",\"\",+'Relación de gastos'!H5)","v":""},"a",{"$f":"IF(+'Relación de gastos'!K5=\"\",\"\",+'Relación de gastos'!K5)","v":""}]
[]
["Ingresos del proyecto/actividad/servicio subvencionado"]
["núm. de orden (0)","Concepto del ingreso","Emisor/a del ingreso",null,"Fecha de cobro\n(dd/mm/aaaa)","Importe","Observaciones"]
[null,null,"NIF","Nombre","(1)","euros"]
["A. Subvención municipal "]
[]
[]
[]
[]
[null,null,null,null,"Subtotal A",{"$f":"SUM(F11:F14)","v":0}]
["B. Subvenciones de otras administraciones"]
[]
[]
[]
[]
[null,null,null,null,"Subtotal B",{"$f":"SUM(F17:F20)","v":0}]
["C. Subvenciones de entes privados"]
[]
[]
[]
[]
[null,null,null,null,"Subtotal C",{"$f":"SUM(F23:F26)","v":0}]
["D. Recursos propios de la entidad aplicados al proyecto"]
[]
[]
[]
[]
[null,null,null,null,"Subtotal D",{"$f":"SUM(F29:F32)","v":0}]
["E. Taquillaje"]
[]
[]
[]
[]
[null,null,null,null,"Subtotal E",{"$f":"SUM(F35:F38)","v":0}]
["F. Cuotas de inscripción"]
[]
[]
[]
[]
[null,null,null,null,"Subtotal F",{"$f":"SUM(F41:F44)","v":0}]
["G. Venta de Productos"]
[]
[]
[]
[]
[null,null,null,null,"Subtotal G",{"$f":"SUM(F47:F50)","v":0}]
["H. Publicidad y/o Esponsorización"]
[]
[]
[]
[]
[null,null,null,null,"Subtotal H",{"$f":"SUM(F53:F56)","v":0}]
["I. Otros ingresos"]
[]
[]
[]
[]
[]
[]
[]
[null,null,null,null,"Subtotal I",{"$f":"SUM(F59:F65)","v":0}]
["Total INGRESOS",null,null,null,"TOTAL",{"$f":"+F15+F21+F27+F33+F39+F45+F51+F57+F66","v":0}]
[]
[{"$f":"'Relación de gastos'!A126:K126","v":"El Sr./Sra. (indicar el nombre y apellidos de la persona representante que firma la justificación) con DNI/NIE (indicar el núm. DNI) en calidad de persona física beneficiaria o representante legal de la persona jurídica beneficiaria (indicar nombre y apellidos) con NIF (indicar núm DNI)."}]
["CERTIFICA que los ingresos imputados al proyecto/actividad/servicio subvencionado han sido efectivamente ingresados; que custodiará la documentación soporte que lo acredita; que esta documentación se encuentra a disposición del Ayuntamiento de Barcelona o de los otros entes municipales en los archivos de esta Entidad, durante un período mínimo de 4 años a contar desde la fecha de presentación de la presente justificación."]
[]
[]
[null,"Población y fecha: ",null,null,"Firma y sello (en caso de registro físico)"]
[]
[null,"Nota:"]
[null,"(0) El número de orden debe ser correlativo comenzando por el número A1, A2, A3, B4, etc."]
[null,"(1) En caso de que el ingreso esté pendiente de cobro, indicar \"P. Cobro\" "]

{"sheet":"gastos e ingresos","index":2,"n_rows":50,"n_cols":11,"rows_kept":50,"cut":false,"hidden":false,"merged":[[4,0,4,1],[4,2,4,3],[4,5,4,6],[5,0,5,1],[5,2,5,3],[5,5,5,6],[49,0,49,10],[44,0,44,10],[45,0,45,10],[46,0,46,10],[47,0,47,10],[37,0,38,9],[40,1,40,2],[43,0,43,10],[48,0,48,10],[6,0,6,1],[6,2,6,3],[9,0,9,1],[9,6,9,7],[10,9,11,9],[10,0,11,1],[10,2,11,2],[10,3,11,3],[10,6,11,7],[21,2,22,2],[21,3,22,3],[25,6,25,7],[10,8,11,8],[36,0,36,9],[26,8,26,9],[34,7,35,10],[26,6,26,7]]}
[]
[]
["Estado de los gastos realizados y de los ingresos obtenidos para la ejecución de la actividad subvencionada (*)"]
[]
["Nombre de la persona física/jurídica beneficiaria:         ",null,{"$f":"IF('Relación de gastos'!C3:D3<>\"\",'Relación de gastos'!C3:D3,\"\")","v":""},null,null,"Importe total del proyecto:",null,{"$f":"'Relación de ingresos '!H3","v":""},"euros"]
["Código de subvención:",null,{"$f":"IF('Relación de gastos'!C4:D4<>\"\",'Relación de gastos'!C4:D4,\"\")","v":""},null,null,"Importe de la subvención otorgada:",null,{"$f":"'Relación de ingresos '!H4","v":""},"euros"]
["Nombre del proyecto subvencionado:",null,{"$f":"IF('Relación de gastos'!C5:D5<>\"\",'Relación de gastos'!C5:D5,\"\")","v":""},null,null,"Período de ejecución del proyecto subvencionado:",null,null,{"$f":"'Relación de ingresos '!H5","v":""},"a",{"$f":"'Relación de ingresos '!J5","v":""}]
[]
["SUBVENCIONES PARA LA PROMOCIÓN Y REFUERZO DE LA ECONOMÍA SOCIAL Y SOLIDARIA 2020"]
["GASTOS PREVISTOS",null,"importe en euros",null,null,null,"INGRESOS PREVISTOS",null,"importe en euros"]
["Gastos directos \n(aquellos que se identifican directamente con el proyecto)",null,"Previsión inicial o reformulada ya aprovada (1)","Gastos realizados (2)","Diferencia\n",null,"Ingresos previstos",null,"Previsión inicial (1)","Ingresos obtenidos (3)"]
[null,null,null,null,"(2-1)"]
[null,"D1.  Retribuciones y seguridad social (régimen general o régimen de autónomos) del personal propio vinculado al proyecto",null,{"$f":"'Relación de gastos'!H17","v":0},{"$f":"+C13-D13","v":0},null,"A.","Subvención municipal (importe solicitado en la instancia/otorgado)",null,{"$f":"'Relación de ingresos '!F15","v":0}]
[null,"D2.  Trabajos realizados por profesionales y empresas externas directamente vinculadas al acompañamiento de procesos de la entidad y con sus asociadas",null,{"$f":"'Relación de gastos'!H24","v":0},0,null,"B.","Subvenciones de otras administraciones",null,{"$f":"'Relación de ingresos '!F21","v":0}]
[null,"D3.  Alquiler de bienes inmuebles directamente vinculados al proyecto",null,{"$f":"'Relación de gastos'!H30","v":0},0,null,"C.","Subvenciones de entes privados",null,{"$f":"'Relación de ingresos '!F27","v":0}]
[null,"D4.  Adquisición de materiales y bienes consumibles íntegramente e imputables al proyecto",null,{"$f":"'Relación de gastos'!H36","v":0},0,null,"D.","Recursos propios de la entidad aplicados al proyecto",null,{"$f":"'Relación de ingresos '!F33","v":0}]
[null,"D5.  Publicidad y propaganda de las actividades directamente vinculadas al proyecto",null,{"$f":"'Relación de gastos'!H42","v":0},0,null,"E.","Taquillaje",null,{"$f":"'Relación de ingresos '!F39","v":0}]
[null,"D6.  Viajes y desplazamientos imputables a las actividades del proyecto",null,{"$f":"'Relación de gastos'!H48","v":0},0,null,"F.","Cuotas de inscripción",null,{"$f":"'Relación de ingresos '!F45","v":0}]
[null,"D7.  Gastos del informe de auditoría",null,{"$f":"'Relación de gastos'!H54","v":0},0,null,"G.","Venta de Productos",null,{"$f":"'Relación de ingresos '!F51","v":0}]
[null,"D8.  Otros gastos que de manera justificada puedan imputarse directamente al proyecto",null,{"$f":"'Relación de gastos'!H60","v":0},0,null,"H","Publicidad y/o Esponsorización",null,{"$f":"'Relación de ingresos '!F57","v":0}]
[null,"Total Gastos Directos   ",{"$f":"SUM(C13:C20)","v":0},{"$f":"SUM(D13:D20)","v":0},{"$f":"SUM(E13:E20)","v":0},null,"I.","Otros ingresos",null,{"$f":"'Relación de ingresos '!F66","v":0}]
[null,"Gastos indirectos ","Previsión inicial o reformulada ya aprovada (1)","Gastos realizados (2)","Diferencia\n",null,null,"Total Ingresos",{"$f":"SUM(I13:I21)","v":0},{"$f":"SUM(J13:J21)","v":0}]
[null,null,null,null,"(2-1)"]
[null,"I.1 Personal de soporte al proyecto (Nóminas y seguridad social)",null,{"$f":"'Relación de gastos'!H68","v":0},{"$f":"+C24-D24","v":0}]
[null,"I.2  Seguros",null,{"$f":"'Relación de gastos'!H74","v":0},0]
[null,"I.3  Amortización",null,{"$f":"'Relación de gastos'!H80","v":0},0,null,"Ingresos menos gastos ",null,{"$f":"+I22-C35","v":0},{"$f":"+J22-D35","v":0}]
[null,"I.4  Alquiler de bienes inmuebles",null,{"$f":"'Relación de gastos'!H86","v":0},0,null,"Desviación de Gastos (4)",null,"Desviación de ingresos (4)"]
[null,"I.5  Adquisición de materiales y bienes consumibles parcialmente imputables al proyecto",null,{"$f":"'Relación de gastos'!H92","v":0},0,null,"Importe"," % ","Importe","%"]
[null,"I.6  Mantenimiento de edificios y/o instalaciones",null,{"$f":"'Relación de gastos'!H98","v":0},0,null,{"$f":"D35-C35","v":0},{"$f":"D35/C35","v":{"$error":"#DIV/0!"}},{"$f":"J22-I22","v":0},{"$f":"J22/I22","v":{"$error":"#DIV/0!"}}]
[null,"I.7  Comunicaciones (teléfono, correos, conexión a internet)",null,{"$f":"'Relación de gastos'!H104","v":0},0,null,null,null,"% subvencionado inicialmente o después de reformulación (5)",{"$f":"I13/I22","v":{"$error":"#DIV/0!"}}]
[null,"I.8  Gastos financieros",null,{"$f":"'Relación de gastos'!H110","v":0},0,null,null,null,"% subvencionado después de justificación (6)",{"$f":"+J13/J22","v":{"$error":"#DIV/0!"}}]
[null,"I.9  Suministros ",null,{"$f":"'Relación de gastos'!H116","v":0},0]
[null,"I.10  Trabajo realizado por otras empresas, parcialmente imputables al proyecto (limpieza, seguridad...)",null,{"$f":"'Relación de gastos'!H122","v":0},0]
[null,"Total Gastos Indirectos   ",{"$f":"SUM(C24:C33)","v":0},{"$f":"SUM(D24:D33)","v":0},{"$f":"SUM(E24:E33)","v":0}]
[null,"Total Gastos",{"$f":"+C21+C34","v":0},{"$f":"+D21+D34","v":0},{"$f":"+E34+E21","v":0}]
[]
["El Sr./Sra. (indicar el nombre y apellidos de la persona representante que firma la justificación) con DNI/NIE (indicar el núm. DNI) en calidad de persona física beneficiaria o representante legal de la persona jurídica beneficiaria (indicar nombre y apellidos) con NIF (indicar núm DNI)."]
["CERTIFICA que los ingresos imputados al proyecto/actividad/servicio subvencionado han sido efectivamente ingresados; que custodiará la documentación soporte que lo acredita; que esta documentación se encuentra a disposición del Ayuntamiento de Barcelona o de los otros entes municipales en los archivos de esta Entidad, durante un período mínimo de 4 años a contar desde la fecha de presentación de la presente justificación."]
[]
[]
[null,"Población y fecha: ",null,null,"Firma y sello (en caso de registro físico)"]
[]
["Notas:"]
["(*) Las columnas sombreadas en color se irán llenando automáticamente a partir de los datos introducidos en los documentos de gastos -detalle e ingresos-detalle. Por lo tanto, no imprimir esta hoja hasta haber llenado las otras."]
["(1) Previsión inicial o reformulación ya aprovada= Se debe indicar la previsión inicial de gastos y de ingresos según aquello que se indicó en el proyecto original en el \"plan de viabilidad económica del proyecto - presupuesto general\". En caso de que ya se haya aprobado una reformulación, se deben indicar las cantidades reformuladas. "]
["(2) Gastos reales = Coste real total del proyecto subvencionado. Automáticamente se introducirán los subtotales de los gastos relacionados en la hoja Gastos-detalle."]
["(3) Ingresos reales = Total de ingresos obtenidos para la realización del proyecto subvencionado. Automáticamente se introducirán los subtotales de los ingresos relacionados en la hoja Ingresos-detalle."]
["(4) Desviación: En el caso de los gastos, la desviación es la diferencia entre gastos reales y la previsión inicial de gastos; y en el caso de ingresos, la diferencia entre los ingresos reales y la previsión inicial de ingresos. "]
["(5) % financiación municipal = porcentaje que suponen las subvenciones municipales (A) respecto del total de ingresos del proyecto subvencionado."]
["(6) El % de la desviación final de gastos se calcula dividiendo el importe resultante de gastos reales - gastos previstos, entre el total de gastos previstos y de la misma manera los ingresos. En caso de existir una desviación siempre se debe motivar."]